Cogmind - Beta 14 @@@ ROGUE MODE // 2025.01.01 @ 12:04:22 Player: Willow Result: Self-destructed Performance ------------- Evolutions (4) 2000 Regions Visited (9) 1800 Robots Destroyed (66) 330 Value Destroyed (1472) 1472 Prototype IDs (21) 420 Alien Tech Used (0) 0 Bonus (1240) 1240 TOTAL SCORE: 7262 Bonus ------- Follower Combat Kills 60 Awakened Behemoth Slayer 1000 Met Imprinter 300 Was Imprinted 300 Friendly Fire -420 Cogmind --------- Core Integrity 708/850 Matter 300/300 Energy 100/100 System Corruption 1% Temperature Cool (0) Movement Flying (34) Location -6/Factory Parts ------- > --- POWER (2) -------- (None) > --- PROPULSION (6) --- VTOL Module Xenon Bombardment Thruster > --- UTILITY (5) ------ Small Storage Unit Advanced Signal Interpreter 0b10 Decoder Chip [Generic] Experimental Melee Analysis Suite > --- WEAPON (2) ------- CR-A16's Behemoth Slayer > --- INVENTORY (8) ---- Improved Heat Sink Matter Compressor (214) Experimental Melee Analysis Suite Improved Light Armor Plating Focal Shield Heart of Steel Peak State ------------ > --- POWER ------------ Improved Deuterium Engine Neutrino Core > --- PROPULSION ------- VTOL Module VTOL Module VTOL Module Xenon Bombardment Thruster Xenon Bombardment Thruster Xenon Bombardment Thruster > --- UTILITY ---------- Small Storage Unit Experimental Melee Analysis Suite Experimental Hacking Suite Makeshift System Shield Hacking Drone Bay > --- WEAPON ----------- Power Sword CR-A16's Behemoth Slayer > --- INVENTORY -------- Matter Compressor Advanced Signal Interpreter 0b10 Decoder Chip [Generic] Experimental Melee Analysis Suite Improved Light Armor Plating Heart of Steel [Rating: 77] Favorites ----------- Power Enhanced Nuclear Core Engine Light Ion Engine Power Core Enhanced Nuclear Core Propulsion Xenon Bombardment Thruster Treads Improved Medium Treads Wheel Wheel Flight Unit Xenon Bombardment Thruster Utility Small Storage Unit Device Improved Sensor Array Storage Small Storage Unit Processor Targeting Computer Hackware Makeshift System Shield Protection Improved Propulsion Shielding Weapon Shotgun Energy Gun Medium Laser Ballistic Gun Shotgun Impact Weapon Power Maul Slashing Weapon Ripper Piercing Weapon CR-A16's Behemoth Slayer Build | -11 -10 -10 -8 -7 -7 -7 -7 -6 -6 ------- Run | Yrd Mat Sub Mat Fac Low Low Zio Pro Fac Slots Evolved 8 | . . . 4 2 . . . . 2 Power 1 | . . . . . . . . . 1 Propulsion 4 | . . . 2 1 . . . . 1 Utility 3 | . . . 2 1 . . . . . Weapon . | . . . . . . . . . . Parts Attached 122 | 7 7 1 10 16 24 19 12 8 18 Power 12 | 1 1 . 1 3 1 1 . 1 3 Engine 6 | 1 1 . 1 . 1 . . . 2 Core 6 | . . . . 3 . 1 . 1 1 Reactor . | . . . . . . . . . . Propulsion 25 | 2 . . 4 6 3 2 . 4 4 Treads 1 | . . . . . . . . 1 . Leg . | . . . . . . . . . . Wheel 2 | 2 . . . . . . . . . Hover . | . . . . . . . . . . Flight 22 | . . . 4 6 3 2 . 3 4 Utility 70 | 2 2 1 4 5 17 15 12 1 11 Device 33 | 1 . 1 1 3 9 5 4 1 8 Storage 12 | 1 1 . . 1 4 4 1 . . Processor 11 | . 1 . 2 . . 1 5 . 2 Hackware 2 | . . . . . . 1 1 . . Protection 12 | . . . 1 1 4 4 1 . 1 Artifact . | . . . . . . . . . . Weapon 15 | 2 4 . 1 2 3 1 . 2 . Energy Gun 2 | 1 1 . . . . . . . . Energy Cannon . | . . . . . . . . . . Ballistic Gun 7 | 1 3 . . 1 2 . . . . Ballistic Cannon . | . . . . . . . . . . Launcher . | . . . . . . . . . . Special Weapon . | . . . . . . . . . . Impact Weapon 1 | . . . . 1 . . . . . Slashing Weapon 3 | . . . 1 . . 1 . 1 . Piercing Weapon 2 | . . . . . 1 . . 1 . Special Melee Weapon . | . . . . . . . . . . Unidentified Prototypes 11 | . 1 . . 1 1 . 8 . . Parts Lost 20 | . . . 1 . 1 5 . 4 9 Power 4 | . . . . . . 1 . 1 2 Propulsion 11 | . . . . . . 3 . 2 6 Utility 4 | . . . 1 . . 1 . 1 1 Weapon 1 | . . . . . 1 . . . . Highest Loss Streak 9 | . . . 1 . 1 4 . 2 9 To Critical Strikes . | . . . . . . . . . . Average Slot Usage (%) 96 | . 100 100 89 99 93 95 91 99 94 Engine 5 | . 14 14 9 1 5 1 . . 8 Core 3 | . . . . 5 1 5 7 6 2 Wheel 7 | . 28 28 . . . . . . . Flight 25 | . . . 36 37 38 36 30 31 38 Device 5 | . 6 7 7 9 5 4 2 3 4 Storage 8 | . 14 14 . 3 5 5 7 7 6 Processor 11 | . 7 6 11 15 15 16 11 7 15 Hackware 4 | . . . . . . . 10 15 3 Protection 3 | . . . 6 8 4 5 4 3 1 Ballistic Gun 11 | . 27 28 16 13 6 7 7 . . Slashing Weapon 2 | . . . 1 . . 1 7 7 5 Piercing Weapon 2 | . . . . . 1 5 . 6 6 Peak Build Rating 77 | 7 10 10 19 43 60 61 62 73 77 Average Rating 39 | 5 9 10 14 32 43 46 51 68 66 On Entrance 30 | . 7 10 10 18 43 45 44 56 70 Naked Turns . | . . . . . . . . . . Heaviest Build 29 | 12 19 20 12 27 25 24 22 25 29 Greatest Support 30 | 20 20 20 16 30 30 30 24 29 30 Greatest Overweight (x) 1 | 1 . . . 1 . . . 1 1 Average Overweight (x) . | . . . . . . . . . . Largest Inventory Capacity 10 | 8 10 10 10 8 8 8 8 8 8 Average Capacity 7 | 7 8 10 5 6 7 7 7 8 8 Most Carried 10 | 4 10 10 8 8 8 8 8 8 8 Average Carried 7 | 2 8 9 4 6 6 5 7 7 7 Final Capacity 10 | 8 10 10 5 8 8 8 8 8 8 Final Carried 10 | 3 10 9 5 8 8 8 8 8 8 Class Distribution -------------------- 35% | Sprinter 29% | Mutant 12% | Hacker-Sprinter 11% | Scavenger-Sprinter 9% | Hacker-Gladiator Dominant Class ---------------- Mutant | -10/Materials Mutant | -10/Subcaves Scavenger-Sprinter | -8/Materials Scavenger-Sprinter | -7/Factory Sprinter | -7/Lower Caves Sprinter | -7/Lower Caves Hacker-Sprinter | -7/Zion Hacker-Gladiator | -6/Proximity Caves Scavenger-Sprinter | -6/Factory Resources | -11 -10 -10 -8 -7 -7 -7 -7 -6 -6 ----------- Run | Yrd Mat Sub Mat Fac Low Low Zio Pro Fac Matter Collected 3569 | 287 238 . 28 160 1216 926 270 85 359 Remotely . | . . . . . . . . . . Salvage Created 2554 | 126 375 . 64 185 511 526 . 551 216 Parts 131 | 4 25 . 12 12 17 13 . 26 22 Haulers Intercepted 3 | . 1 . . 2 . . . . . Recyclers Shooed . | . . . . . . . . . . Parts Field Recycled 2 | . . . . 2 . . . . . Retrieved Matter 7 | . . . . 7 . . . . . Parts Self-Destructed 45 | . . . . . 5 12 . 28 . Prevented 5 | . . . . . 3 . . 2 . Kills | -11 -10 -10 -8 -7 -7 -7 -7 -6 -6 ------- Run | Yrd Mat Sub Mat Fac Low Low Zio Pro Fac Combat Hostiles Destroyed 44 | . 9 . 3 . 8 8 . 11 5 Melee 28 | . . . . . 5 8 . 10 5 Guns 12 | . 9 . 3 . . . . . . Classes Destroyed 16 | 3 6 . . . 2 2 . 1 2 Worker 5 | 2 2 . . 1 . . . . . Builder 2 | . 1 . . 1 . . . . . Tunneler 2 | 1 1 . . . . . . . . Hauler 3 | . 1 . . 2 . . . . . Recycler 1 | 1 . . . . . . . . . Minesweeper 1 | . . . . . 1 . . . . Operator 3 | . . . . . . . . . 3 Watcher 5 | . 2 . 1 2 . . . . . Swarmer 35 | . 6 . 3 . 7 5 . 10 4 Grunt 4 | . 2 . . . 1 1 . . . Sentry 1 | . . . . . . 1 . . . Hunter 1 | . . . . . . 1 . . . Programmer 1 | . . . . . . . . . 1 Behemoth 1 | . . . . . . . . 1 . Subdweller 1 | . 1 . . . . . . . . Packrat 1 | . . . . . . 1 . . . Samaritan 2 | . . . . . 2 . . . . Best Kill Streak 5 | 2 5 . 4 4 4 2 . 4 4 Combat Bots Only 4 | . 4 . 3 . 4 2 . 4 4 Max Kills in Single Turn 2 | 1 2 . 1 1 1 1 . 1 1 Gunslinging . | . . . . . . . . . . Exploded . | . . . . . . . . . . Melee 1 | . . . . . 1 1 . 1 1 Uniques/NPCs Destroyed . | . . . . . . . . . . Combat | -11 -10 -10 -8 -7 -7 -7 -7 -6 -6 -------- Run | Yrd Mat Sub Mat Fac Low Low Zio Pro Fac Hostile Shots Fired 335 | . 24 1 39 . 41 113 . 60 57 Missed 143 | . 10 1 24 . 14 53 . 22 19 Damage Taken 2579 | . 143 . 116 . 415 679 . 638 588 Core 546 | . 20 . 27 . 71 158 . 128 142 Absorbed by Shields . | . . . . . . . . . . Redirected to Shielding 149 | . . . 11 . 73 . . 65 . Regen/Repaired (Parts) 297 | . . . . . . . 297 . . Core Remaining (%) 84 | 100 . 92 95 . . . . 49 . Volleys Fired 54 | 17 21 . 6 9 1 . . . . Largest 2 | 2 2 . 2 2 1 . . . . Hottest 70 | 70 46 . 46 46 23 . . . . Shots Fired 107 | 34 42 . 12 18 1 . . . . Gun 107 | 34 42 . 12 18 1 . . . . Cannon . | . . . . . . . . . . Launcher . | . . . . . . . . . . Special . | . . . . . . . . . . Kinetic 90 | 17 42 . 12 18 1 . . . . Thermal 17 | 17 . . . . . . . . . Explosive . | . . . . . . . . . . Electromagnetic . | . . . . . . . . . . Robot Hit Streak 8 | 8 7 . 6 7 . . . . . Robot Miss Streak 4 | 3 4 . 4 2 2 . . . . Penetration Max . | . . . . . . . . . . Secondary Targets . | . . . . . . . . . . Shots Hit Robots 155 | 25 30 . 7 17 18 24 . 23 11 Core Hits 86 | 8 23 . 5 11 7 11 . 13 8 Critical Kills 1 | . . . . . 1 . . . . Critical Parts Destroyed 5 | . 1 . . 1 3 . . . . Critical Strikes 16 | 1 1 . . 1 4 3 . 1 5 Burn 1 | 1 . . . . . . . . . Destroy 1 | . 1 . . . . . . . . Smash 5 | . . . . 1 4 . . . . Sever 4 | . . . . . . 1 . 1 2 Impale 5 | . . . . . . 2 . . 3 Melee Attacks 121 | . . . 3 3 27 36 . 31 21 Impact 22 | . . . . 3 19 . . . . Slashing 33 | . . . 3 . . 12 . 12 6 Piercing 66 | . . . . . 8 24 . 19 15 Sneak Attacks 5 | . . . . 2 3 . . . . Combat Hostiles . | . . . . . . . . . . Follow-up Attacks 4 | . . . . . . . . 4 . Damage Inflicted 5099 | 248 490 . 100 516 1240 989 . 979 537 Guns 1083 | 248 490 . 100 245 . . . . . Cannons . | . . . . . . . . . . Explosions . | . . . . . . . . . . Melee 4016 | . . . . 271 1240 989 . 979 537 Ramming . | . . . . . . . . . . Kinetic 943 | 108 490 . 100 245 . . . . . Thermal 140 | 140 . . . . . . . . . Explosive . | . . . . . . . . . . Electromagnetic . | . . . . . . . . . . Impact 1326 | . . . . 271 1055 . . . . Slashing 1090 | . . . . . . 435 . 479 176 Piercing 1600 | . . . . . 185 554 . 500 361 Highest Corruption 2 | . 2 2 . . . . 2 2 1 Average Corruption 1 | . 2 2 . . . . 2 2 1 Corruption Purged . | . . . . . . . . . . Corruption Blocked . | . . . . . . . . . . Effects 16 | . 3 . . . . . 3 10 . Message Errors 4 | . . . . . . . 1 3 . Matter Fused 4 | . . . . . . . 1 3 . Heat Flow Errors 2 | . . . . . . . . 2 . Energy Discharges 4 | . 2 . . . . . 1 1 . Data Loss (minor) 1 | . 1 . . . . . . . . Data Loss (major) 1 | . . . . . . . . 1 . Overload Shots . | . . . . . . . . . . Overflow Damage 701 | . . . . 107 403 71 . 120 . Projectiles . | . . . . . . . . . . Explosions . | . . . . . . . . . . Melee 701 | . . . . 107 403 71 . 120 . Knockbacks 1 | . . . . . 1 . . . . Impact 1 | . . . . . 1 . . . . Kinetic . | . . . . . . . . . . Secondary . | . . . . . . . . . . Self-Inflicted Damage . | . . . . . . . . . . Shots . | . . . . . . . . . . Rammed . | . . . . . . . . . . Targets Rammed . | . . . . . . . . . . Kicked . | . . . . . . . . . . Crushed . | . . . . . . . . . . Highest Temperature 302 | 100 1 . 3 24 90 185 . 233 302 Average Temperature 52 | 38 1 . 3 9 20 61 . 39 119 Received Heat Transfer 183 | . 36 . 18 . 9 96 . 24 . Effects 1 | . . . . . . . . . 1 Energy Bleed 1 | . . . . . . . . . 1 Siege Activations . | . . . . . . . . . . Robots Corrupted 5 | . . . . . 5 . . . . Combat Hostiles 5 | . . . . . 5 . . . . Parts Fried 6 | . . . . 3 3 . . . . Impact Corruptions 16 | . . . . 2 14 . . . . Robots Melted . | . . . . . . . . . . Combat Hostiles . | . . . . . . . . . . Parts Melted 1 | 1 . . . . . . . . . Heat Transferred 481 | 481 . . . . . . . . . Parts Sabotaged . | . . . . . . . . . . Parts Stolen . | . . . . . . . . . . Parts Stripped . | . . . . . . . . . . Power Chain Reactions . | . . . . . . . . . . Alert | -11 -10 -10 -8 -7 -7 -7 -7 -6 -6 ------- Run | Yrd Mat Sub Mat Fac Low Low Zio Pro Fac Peak Influence 274 | 20 274 . 139 161 . . . . 239 Initial 114 | . 13 . 39 62 . . . . 114 Average 111 | 6 105 . 96 111 . . . . 159 Maximum Alert Level 1 | . 1 . . . . . . . 1 Low Security (%) 95 | 100 96 . 100 100 . . . . 86 Level 1 4 | . 3 . . . . . . . 13 Level 2 . | . . . . . . . . . . Level 3 . | . . . . . . . . . . Level 4 . | . . . . . . . . . . Level 5 . | . . . . . . . . . . High Security . | . . . . . . . . . . Max Security . | . . . . . . . . . . Squads Dispatched 6 | . 1 . 1 2 . . . . 2 Investigation 1 | . . . . . . . . . 1 Extermination 1 | . . . . . . . . . 1 Reinforcement 4 | . 1 . 1 2 . . . . . Assault . | . . . . . . . . . . Garrison . | . . . . . . . . . . Intercept . | . . . . . . . . . . Searches Triggered . | . . . . . . . . . . Construction Impeded . | . . . . . . . . . . Haulers Reinforced . | . . . . . . . . . . Active Scanning Responses . | . . . . . . . . . . Cargo Convoy Interrupts . | . . . . . . . . . . Stealth | -11 -10 -10 -8 -7 -7 -7 -7 -6 -6 --------- Run | Yrd Mat Sub Mat Fac Low Low Zio Pro Fac Distress Signals 2 | . 2 . . . . . . . . Communications Jammed . | . . . . . . . . . . Distress Signals . | . . . . . . . . . . Times Spotted 86 | . 20 1 8 4 10 11 . 21 11 Peak Tracking Total 7 | . 7 2 6 1 4 4 . 4 4 Tactical Retreats 10 | . 2 . . . 2 2 . 4 . Traps | -11 -10 -10 -8 -7 -7 -7 -7 -6 -6 ------- Run | Yrd Mat Sub Mat Fac Low Low Zio Pro Fac Traps Triggered 1 | . 1 . . . . . . . . Indirectly . | . . . . . . . . . . Trap Hack Attempts . | . . . . . . . . . . Triggered . | . . . . . . . . . . Disarmed . | . . . . . . . . . . Reprogrammed . | . . . . . . . . . . Reused . | . . . . . . . . . . Traps Extracted . | . . . . . . . . . . Installed . | . . . . . . . . . . Triggered 2 | . . . . . 1 . . 1 . Machines | -11 -10 -10 -8 -7 -7 -7 -7 -6 -6 ---------- Run | Yrd Mat Sub Mat Fac Low Low Zio Pro Fac Machines Disabled . | . . . . . . . . . . Max in Single Turn . | . . . . . . . . . . Machines Repaired . | . . . . . . . . . . Machines Dismantled . | . . . . . . . . . . Machines Sabotaged . | . . . . . . . . . . Overloaded Fab Kills . | . . . . . . . . . . Hacking | -11 -10 -10 -8 -7 -7 -7 -7 -6 -6 --------- Run | Yrd Mat Sub Mat Fac Low Low Zio Pro Fac Machines Accessed 17 | . 7 . . 8 1 . . . 1 Terminals 14 | . 7 . . 6 . . . . 1 Fabricators . | . . . . . . . . . . Repair Stations . | . . . . . . . . . . Recycling Units 1 | . . . . 1 . . . . . Scanalyzers . | . . . . . . . . . . Garrison Access 1 | . . . . 1 . . . . . Total Hacks 43 | . 24 . . 17 1 . . . 1 Successful 21 | . 15 . . 4 1 . . . 1 Failed 22 | . 9 . . 13 . . . . . Catastrophic 4 | . 1 . . 3 . . . . . Database Lockouts . | . . . . . . . . . . Manual 54 | . 24 . . 16 . . . . 14 Terminals 38 | . 24 . . 13 . . . . 1 Fabricators . | . . . . . . . . . . Repair Stations . | . . . . . . . . . . Recycling Units 1 | . . . . 1 . . . . . Scanalyzers . | . . . . . . . . . . Garrison Access 3 | . . . . 3 . . . . . Terminal Hacks 10 | . 8 . . . 1 . . . 1 Part Schematic 1 | . 1 . . . . . . . . Robot Analysis 3 | . 3 . . . . . . . . Open Door 1 | . . . . . 1 . . . . Open DSF 1 | . . . . . . . . . 1 Emergency Access Points 1 | . 1 . . . . . . . . Terminal Index 1 | . 1 . . . . . . . . Alert Level 1 | . 1 . . . . . . . . Locate Traps 1 | . 1 . . . . . . . . Fabricator Hacks . | . . . . . . . . . . Repair Station Hacks . | . . . . . . . . . . Recycling Unit Hacks 1 | . . . . 1 . . . . . Report Inventory 1 | . . . . 1 . . . . . Scanalyzer . | . . . . . . . . . . Garrison Access Hacks . | . . . . . . . . . . Unauthorized Hacks 10 | . 7 . . 3 . . . . . Terminals 10 | . 7 . . 3 . . . . . Botnet 9 | . 6 . . 3 . . . . . Operators 1 | . 1 . . . . . . . . Fabricators . | . . . . . . . . . . Repair Stations . | . . . . . . . . . . Recycling Units . | . . . . . . . . . . Scanalyzers . | . . . . . . . . . . Garrison Access . | . . . . . . . . . . Data Cores Recovered 1 | . . . . . . . . . 1 Used . | . . . . . . . . . . Hacking Detections 14 | . 6 . . 8 . . . . . Full Trace Events . | . . . . . . . . . . Feedback Events . | . . . . . . . . . . Feedback Blocked . | . . . . . . . . . . Robot Schematics Acquired . | . . . . . . . . . . Robots Built . | . . . . . . . . . . Authchips . | . . . . . . . . . . Time . | . . . . . . . . . . Total Robot Build Rating . | . . . . . . . . . . Part Schematics Acquired 11 | . 1 . . . . . . . 10 Parts Built . | . . . . . . . . . . Authchips . | . . . . . . . . . . Time . | . . . . . . . . . . Total Part Build Rating . | . . . . . . . . . . Parts Repaired . | . . . . . . . . . . Time . | . . . . . . . . . . Parts Recycled . | . . . . . . . . . . Recycled Matter . | . . . . . . . . . . Retrieved Matter . | . . . . . . . . . . Retrieved Components . | . . . . . . . . . . Parts Scanalyzed . | . . . . . . . . . . Part Schematics Acquired . | . . . . . . . . . . Parts Damaged . | . . . . . . . . . . Bothacking | -11 -10 -10 -8 -7 -7 -7 -7 -6 -6 ------------ Run | Yrd Mat Sub Mat Fac Low Low Zio Pro Fac Used RIF Installer . | . . . . . . . . . . Robots Hacked . | . . . . . . . . . . Non-combat . | . . . . . . . . . . Combat . | . . . . . . . . . . Robot Hacks Applied . | . . . . . . . . . . Relay Couplers Released . | . . . . . . . . . . Fabnet Peak Effective % . | . . . . . . . . . . Robots Rewired . | . . . . . . . . . . Allies Hacked . | . . . . . . . . . . Hacks Repelled . | . . . . . . . . . . Allies | -11 -10 -10 -8 -7 -7 -7 -7 -6 -6 -------- Run | Yrd Mat Sub Mat Fac Low Low Zio Pro Fac Total Allies 4 | . . . . . . . 4 . . Largest Group 4 | . . . . . . . 4 4 . Highest-Rated Group 153 | . . . . . . . 153 153 . Highest-Rated Ally 40 | . . . . . . . 40 40 . Total Orders 2 | . . . . . . . . . 2 EXPLORE 2 | . . . . . . . . . 2 Ally Attacks 19 | . . . . . . . . 19 . Total Damage 300 | . . . . . . . . 300 . Kills 3 | . . . . . . . . 3 . Allies Corrupted . | . . . . . . . . . . Allies Melted . | . . . . . . . . . . Intel | -11 -10 -10 -8 -7 -7 -7 -7 -6 -6 ------- Run | Yrd Mat Sub Mat Fac Low Low Zio Pro Fac Robot Analysis Total 3 | . 3 . . . . . . . . Derelict Logs Recovered 9 | . . . . . 3 2 1 3 . Drone Launches 2 | . . . . . . . . . 2 Drone Recoveries . | . . . . . . . . . . Decoded 0b10 Intel 6 | . . . . . . . . . 6 Items 5 | . . . . . . . . . 5 Exits 1 | . . . . . . . . . 1 Zionite Intel Received 4 | . . . . . . . . . 4 Prototype Schematics 1 | . . . . . . . . . 1 Unaware Analyses 1 | . . . . . . . . . 1 Active Garrisons 1 | . . . . . . . . . 1 Depthwide Sectors/-1 1 | . . . . . . . . . 1 Exploration | -11 -10 -10 -8 -7 -7 -7 -7 -6 -6 ------------- Run | Yrd Mat Sub Mat Fac Low Low Zio Pro Fac Turns Passed 4782 | 119 1131 129 88 297 794 489 670 647 418 Spaces Moved 8090 | 42 816 156 120 627 1954 913 1508 1074 880 Core 3 | 3 . . . . . . . . . Treads . | . . . . . . . . . . Legs . | . . . . . . . . . . Wheels 1011 | 39 816 156 . . . . . . . Hover . | . . . . . . . . . . Flight 7076 | . . . 120 627 1954 913 1508 1074 880 Fastest Speed 22 | 50 80 80 31 28 27 28 31 26 22 Average Speed 36 | 80 80 80 31 28 27 28 31 42 22 Slowest Speed 129 | 100 80 80 31 108 31 31 31 129 114 Overloaded Moves . | . . . . . . . . . . Propulsion Burnouts . | . . . . . . . . . . Robots Hopped 11 | . . . 1 2 1 . . 1 6 Cave-ins Triggered . | . . . . . . . . . . Exploration Rate (%) 54 | 4 90 13 19 22 97 82 90 93 30 Regions Visited 9 Branch Regions 5 Pre-discovered Areas 7 | . . 1 . . . . 1 . 5 Known Exits Taken 6 | . . . 1 1 1 1 1 1 . Unknown Exits Taken 3 | 1 1 1 . . . . . . . Scrap Searched 19 | . . . . . 6 4 4 5 . Spaces Dug 2 | . . . 2 . . . . . . Terrain Destroyed 2 | . . . 2 . . . . . . Melee 2 | . . . 2 . . . . . . Projectile . | . . . . . . . . . . AOE . | . . . . . . . . . . Terrain Rammed . | . . . . . . . . . . Walls Destroyed . | . . . . . . . . . . Machines Disabled . | . . . . . . . . . . Actions | -11 -10 -10 -8 -7 -7 -7 -7 -6 -6 --------- Run | Yrd Mat Sub Mat Fac Low Low Zio Pro Fac Total 9622 | 93 1255 159 150 718 2153 1090 1713 1225 1066 Wait 1076 | 24 385 3 6 44 109 96 166 109 134 Move 8060 | 41 815 155 117 622 1951 912 1507 1071 869 Hop 10 | . . . 1 2 1 . . 1 5 Pick Up 73 | 4 14 . 2 8 15 10 10 6 4 Fast Attach 70 | 6 4 . 3 5 16 10 10 4 12 Attach 26 | 1 . . 3 1 5 9 2 2 3 Detach 10 | . 1 . . . 2 4 1 . 2 Swap 26 | . 3 1 4 10 3 . . 2 3 Drop 104 | . 12 . 5 14 23 13 17 5 15 Fire 54 | 17 21 . 6 9 1 . . . . Melee 113 | . . . 3 3 27 36 . 25 19 Ram . | . . . . . . . . . . Kick . | . . . . . . . . . . Crush . | . . . . . . . . . . Escape Stasis . | . . . . . . . . . . Rewire . | . . . . . . . . . . Trap . | . . . . . . . . . . Miscellaneous . | . . . . . . . . . . Route ------- -11/Scrapyard -10/Materials (discovered 5 exits: [*Mat x3] / [*Min] / [*Sub]) -10/Subcaves -8/Materials -7/Factory -7/Lower Caves -7/Lower Caves (discovered 2 exits: *Fac / *Zio) -7/Zion -6/Proximity Caves -6/Factory (discovered 3 exits: Fac x2 / *Low) History --------- Turn | Location | Event 12 | -11/Scrapyard | Discovered new exit (range 15) 120 | -11/Scrapyard | Entered Materials 173 | -10/Materials | Discovered new exit (range 16) 310 | -10/Materials | Build established: Mutant 560 | -10/Materials | Discovered new exit (range 4) 620 | -10/Materials | Derelicts attacked the area 990 | -10/Materials | Discovered new exit (range 8) 1106 | -10/Materials | Discovered new exit (range 5) 1185 | -10/Materials | Discovered new exit (range 8) 1251 | -10/Materials | Entered Subcaves 1267 | -10/Subcaves | Learned location of Zion (-7) 1267 | -10/Subcaves | Met a Zionite searching for "candidates" 1296 | -10/Subcaves | Discovered new exit (range 16) 1380 | -10/Subcaves | Entered Materials 1380 | -8/Materials | Evolved 4 slots: Propulsion x2, Utility x2 1463 | -8/Materials | Discovered new exit (range 16) 1468 | -8/Materials | Identified exit to Factory 1468 | -8/Materials | Entered Factory 1468 | -7/Factory | Evolved 2 slots: Propulsion x1, Utility x1 1689 | -7/Factory | Discovered new exit (range 10) 1691 | -7/Factory | Identified exit to Lower Caves 1765 | -7/Factory | Entered Lower Caves 1785 | -7/Lower Caves | Learned Factory emergency access door positions 1796 | -7/Lower Caves | Found Prototype Device 1796 | -7/Lower Caves | Identified Heart of Steel 1815 | -7/Lower Caves | Murdered Warlord Statue 1842 | -7/Lower Caves | Learned Factory garrison access intel 1944 | -7/Lower Caves | Spotted B-75 Beast 1954 | -7/Lower Caves | Encountered a Warlord checkpoint 1979 | -7/Lower Caves | Build established: Sprinter 1990 | -7/Lower Caves | Identified exit to Lower Caves 2559 | -7/Lower Caves | Entered another Lower Caves area 2562 | -7/Lower Caves | Discovered new exit (range 6) 2564 | -7/Lower Caves | Identified exit to Factory 2577 | -7/Lower Caves | Encountered a Warlord checkpoint 2675 | -7/Lower Caves | Lost 4 parts (1p2n1u) 2927 | -7/Lower Caves | Learned 4 Factory zone layouts 2928 | -7/Lower Caves | Learned Factory trap positions 2951 | -7/Lower Caves | Attracted the attention of an 0b10 checkpoint 3035 | -7/Lower Caves | Discovered new exit (range 11) 3048 | -7/Lower Caves | Identified exit to Zion 3048 | -7/Lower Caves | Entered Zion 3067 | -7/Zion | Learned Factory machine intel 3075 | -7/Zion | Discovered new exit (range 11) 3080 | -7/Zion | Identified exit to Proximity Caves 3139 | -7/Zion | Given the Hacking Drone Bay 3140 | -7/Zion | Found Prototype Device 3140 | -7/Zion | Identified Hacking Drone Bay 3150 | -7/Zion | Learned location of Quarantine (-3) 3164 | -7/Zion | Given A8's code to call for help 3210 | -7/Zion | Found CR-A16's Pointy Stick 3237 | -7/Zion | Visited the Megawrench Repair Shop 3238 | -7/Zion | Megawrench repaired 10 parts 3254 | -7/Zion | Found Prototype Device 3254 | -7/Zion | Identified Phasing AFG 3389 | -7/Zion | Found Prototype Processor 3389 | -7/Zion | Identified Exp. Melee Analysis Suite 3391 | -7/Zion | Found Prototype Processor 3391 | -7/Zion | Identified Exp. Terrain Scan Processor 3394 | -7/Zion | Found Prototype Hackware 3394 | -7/Zion | Identified Exp. Hacking Suite 3398 | -7/Zion | Found Prototype Processor 3398 | -7/Zion | Identified Exp. Target Analyzer 3401 | -7/Zion | Found Prototype Processor 3401 | -7/Zion | Identified Exp. Core Analyzer 3403 | -7/Zion | Found Exp. Melee Analysis Suite 3447 | -7/Zion | Met Imprinter 3452 | -7/Zion | Imprinted 3454 | -7/Zion | Declared Zion's savior 3674 | -7/Zion | Build established: Hacker-Sprinter 3718 | -7/Zion | Entered Proximity Caves 3718 | -6/Proximity Caves | Accompanied by 4 allies 3754 | -6/Proximity Caves | Spotted B-75 Beast 3803 | -6/Proximity Caves | Revealed the true nature of CR-A16's Pointy Stick 3809 | -6/Proximity Caves | Destroyed B-75 Beast 4047 | -6/Proximity Caves | Core integrity fell below 50% 4101 | -6/Proximity Caves | Build established: Hacker-Gladiator 4218 | -6/Proximity Caves | Learned Factory interactive machine intel 4278 | -6/Proximity Caves | Learned 8 Factory zone layouts 4313 | -6/Proximity Caves | Learned Factory garrison access intel 4328 | -6/Proximity Caves | Discovered exit to Factory (range 6) 4365 | -6/Proximity Caves | Entered Factory 4365 | -6/Factory | Evolved 2 slots: Power x1, Propulsion x1 4366 | -6/Factory | Identified exit to Factory 4367 | -6/Factory | Loaded intel: 107 trap records 4369 | -6/Factory | Loaded intel: 260 machine locations 4370 | -6/Factory | Loaded intel: 51 interactive machine locations 4371 | -6/Factory | Loaded intel: 4 garrison access locations 4468 | -6/Factory | Retrieved Zion intel report: Unaware Analyses 4484 | -6/Factory | Retrieved Zion intel report: Depthwide Sectors/-5 4587 | -6/Factory | Identified exit to Lower Caves 4689 | -6/Factory | Retrieved Zion intel report: Prototype Schematics 4726 | -6/Factory | Retrieved Zion intel report: Active Garrisons 4783 | -6/Factory | Self-destructed Last Messages --------------- 04763_ Acquired VTOL Module. 04765_ S-27 Virus suffers critical hit (Impale). 04765_ S-27 Virus destroyed. 04766_ ALERT: Security rotation in progress. 04766_ Slug penetrates Wall. 04766_ Penetrated by Slug. 04766_ VTOL Module destroyed. 04766_ Mic. Nuclear Core destroyed. 04769_ Acquired 28 matter. 04769_ Acquired VTOL Module. 04769_ Xenon Bombardment Thruster destroyed. 04772_ VTOL Module destroyed. 04776_ S-27 Virus suffers critical hit (Impale). 04776_ S-27 Virus destroyed. 04777_ >> DECODED: Prototype Impact Weapon location. 04781_ S-27 Virus destroyed. 04782_ Slug penetrates Door. 04782_ Penetrated by Slug. 04782_ Imp. Deuterium Engine destroyed. Map ----- +----------------------------------------------------+ | ??????"R""?????"""?"""??????????????# # | | ??????"""??????"""?"""??????????????# # | | ????????????????????????????????????# ^ ## | | ???????????????????????????????????? ^ ## | | ??????"??"""???????????????????????? ^ | | ??????T??"""???????????????????????? | | ??????"??"""??/????????????????????? | | ???????????????????????????????????? | | ??????????????????????? ?????????? | | ??????????????????????? ?????????? | | ??????????????????????? ??????????########## | | ?????????????????????? ??????????### ###### | | ?????????????????????? ?????????? / | | ?????????????????????? ?????????? # | | ?????????????????????? ?????????? # | | ??????????????????????? ?????????? < # | | ??????????? #?????? #?# ?????????????? | | ??????????? #??????# #?# ?????????????? | | ??????????? #??????# #?# ?????????????? | | ??????????? #??????### ###########?????????????? | | ??????????? #????????#h#??????# ?????????????? | | ???????????####????????# #??????# ?????????????? | | ???????????????#########;####???# ?????????????? | | ?"""???????????# [ [ #???# ?????????????? | | ?"Y"?########### = ]/ #???# ?????????????? | | ?"?"?# #/!! [%@ #???# ?????????????? | | ?????# # """ """%* #???# ?????????????? | | ?????# #=!""" """ #???# ?????????????? | | ?"""?# T" # =""" """ #???# ?????????????? | | ?"""?+ " + #???# ?????????????? | | ?"""?# # """ """ #???# ?????????????? | | ?????# =# """ """ #???# ?????????????? | | ?"""?# # """ """ #???####?????????????? | | ?"""?# # #????????????????????? | | ?"""?### ### ! = #????????????????????? | | ???????# #?#####################?????????????? | | ???????# #??????????????# """ #?????????????? | | ???????# #??????????????# """ #?????????????? | | ???????# #??????????????# """ #?????????????? | | ###????# #??????????????# +?????????????? | | T ###### #??????????????# #?????????????? | | #???????????????????????????????????? | | #???????????????????????????????????? | | #???????????????????????????????????" | | #???????????????????????????????????" | | #???????????????????????????????????" | | ##############???????????????????????????????????? | | #???????????????????????????????????????????? | | """#??????????????????????###################### | | T"#??????????????????????# # | +----------------------------------------------------+ Best States ------------- Heat Dissipation 51 Energy Generation 26 Energy Capacity 340 Matter Stores 300 Matter Capacity 300 Sight Range 16 Robot Scan Range 15 Terrain Scan Range 20 Terrain Scan Density 10 Armor Coverage 150 Resistance: KI 20 Propulsion Shielding 66 Evasion (%) 65 Targeting Accuracy 5 Melee Accuracy 17 Offensive Hacking 16 Defensive Hacking 11 Item Schematics ----------------- Hammer | -10/Materials | Hacked Cld. Cesium-ion Thruster | -6/Factory | Z-intel Gui. EMP Blaster | -6/Factory | Z-intel Exp. Targeting Computer | -6/Factory | Z-intel Cld. Aerolev Unit | -6/Factory | Z-intel Cld. Pulse Rifle | -6/Factory | Z-intel F-cell Engine | -6/Factory | Z-intel Scatter Rocket Array | -6/Factory | Z-intel Enh. Nuclear Core | -6/Factory | Z-intel Cld. VTOL Module | -6/Factory | Z-intel Cld. Airjet | -6/Factory | Z-intel Robot Schematics ------------------ None Fabricated ------------ Nothing Alien Tech Used ----------------- None Achievements -------------- Can't Catch Me Challenges ------------ None Game ------ Seed ScrapoidIntegrityRouter Manual? 0 Play Time 01:35:54 Cumulative 44.9 hours Start 2025.01.01 @ 10:26:31 End 2025.01.01 @ 12:04:22 Sessions 1 Manual Loads 0 Difficulty Rogue Special Mode None Game No. 31 Rogue 16 Adventurer 15 Explorer 0 Win Type - Total 0 Types 0/0/0/0/0/0/0/0/0 Lore% 22 Gallery% 32 Achievement% 32 Wizard Run 0 Options --------- Layout 1 ASCII 0 Keyboard 0 Movement Mouse Keybinds 0 Fullscreen 1 Font 24/Smallcaps Map View 50x35 Zoom Use 0% Tactical HUD 1 Map Filters NONE Filters NONE Steam 1 RUN: 48ed8dea-f1b6-4c2e-93e6-b6838b0d9a84